[Event "January 2 Late 2024"]
[Site "https://www.chess.com"]
[Date "2024.01.02"]
[Round "9"]
[White "Tari, Aryan"]
[Black "Manolache, Marius"]
[Result "1-0"]
[Board "28"]
[TimeControl "180+1"]
[WhiteFideId "1510045"]
[BlackFideId "1201530"]
[WhiteElo "2908"]
[BlackElo "2687"]
[WhiteTeam "NOR"]
[BlackTeam "ROU"]
[WhiteClock "0:01:11"]
[BlackClock "0:01:22"]

1. e4 {[%clk 0:03:00]}  d6 {[%clk 0:02:56]} 2. d4 {[%clk 0:03:00]}  Nf6 {[%clk 0:02:56]} 3. Nc3 {[%clk 0:03:00]}  g6 {[%clk 0:02:57]} 4. Nf3 {[%clk 0:02:58]}  Bg7 {[%clk 0:02:57]} 5. Be2 {[%clk 0:02:59]}  O-O {[%clk 0:02:57]} 6. O-O {[%clk 0:02:59]}  c6 {[%clk 0:02:56]} 7. a4 {[%clk 0:02:57]}  a5 {[%clk 0:02:55]} 8. h3 {[%clk 0:02:55]}  Na6 {[%clk 0:02:55]} 9. Be3 {[%clk 0:02:50]}  Nb4 {[%clk 0:02:55]} 10. Nd2 {[%clk 0:02:47]}  b6 {[%clk 0:02:51]} 11. Ncb1 {[%clk 0:02:18]}  Ba6 {[%clk 0:02:49]} 12. Bxa6 {[%clk 0:02:10]}  Nxa6 {[%clk 0:02:48]} 13. Na3 {[%clk 0:02:04]}  Nd7 {[%clk 0:02:46]} 14. c3 {[%clk 0:02:04]}  e5 {[%clk 0:02:43]} 15. Ndc4 {[%clk 0:01:42]}  exd4 {[%clk 0:02:31]} 16. Bxd4 {[%clk 0:01:38]}  d5 {[%clk 0:02:25]} 17. Bxg7 {[%clk 0:01:34]}  Kxg7 {[%clk 0:02:24]} 18. exd5 {[%clk 0:01:34]}  c5 {[%clk 0:02:09]} 19. d6 {[%clk 0:01:27]}  Re8 {[%clk 0:02:03]} 20. Nb5 {[%clk 0:01:24]}  Qf6 {[%clk 0:01:55]} 21. Qd5 {[%clk 0:01:21]}  Rad8 {[%clk 0:01:48]} 22. Rae1 {[%clk 0:01:19]}  h5 {[%clk 0:01:46]} 23. Nc7 {[%clk 0:01:16]}  Rxe1 {[%clk 0:01:40]} 24. Rxe1 {[%clk 0:01:17]}  Qh4 {[%clk 0:01:22]} 25. Nxa6 {[%clk 0:01:11]} 1-0

[Event "January 2 Late 2024"]
[Site "https://www.chess.com"]
[Date "2024.01.02"]
[Round "9"]
[White "Ibarra Jerez, Jose Carlos"]
[Black "Annaberdiyev, Meylis"]
[Result "1-0"]
[Board "29"]
[TimeControl "180+1"]
[WhiteFideId "2226332"]
[BlackFideId "14000563"]
[WhiteElo "2893"]
[BlackElo "2681"]
[WhiteTeam "ESP"]
[BlackTeam "TKM"]
[WhiteClock "0:00:08"]
[BlackClock "0:00:00"]

1. Nf3 {[%clk 0:03:00]}  d5 {[%clk 0:02:59]} 2. g3 {[%clk 0:03:01]}  Nf6 {[%clk 0:02:58]} 3. Bg2 {[%clk 0:03:01]}  c6 {[%clk 0:02:59]} 4. O-O {[%clk 0:03:01]}  Bg4 {[%clk 0:02:59]} 5. h3 {[%clk 0:03:01]}  Bxf3 {[%clk 0:02:59]} 6. Bxf3 {[%clk 0:03:01]}  e5 {[%clk 0:02:59]} 7. d3 {[%clk 0:03:02]}  Nbd7 {[%clk 0:02:59]} 8. e4 {[%clk 0:03:02]}  dxe4 {[%clk 0:02:59]} 9. dxe4 {[%clk 0:03:03]}  Bc5 {[%clk 0:02:59]} 10. Qe2 {[%clk 0:03:03]}  Qe7 {[%clk 0:02:57]} 11. a4 {[%clk 0:03:03]}  h5 {[%clk 0:02:56]} 12. h4 {[%clk 0:03:03]}  Nf8 {[%clk 0:02:52]} 13. c3 {[%clk 0:02:59]}  a5 {[%clk 0:02:50]} 14. Nd2 {[%clk 0:02:57]}  Ne6 {[%clk 0:02:50]} 15. Nc4 {[%clk 0:02:57]}  Nd7 {[%clk 0:02:48]} 16. Bxh5 {[%clk 0:02:53]}  g5 {[%clk 0:02:44]} 17. hxg5 {[%clk 0:02:48]}  Nxg5 {[%clk 0:02:44]} 18. Bg4 {[%clk 0:02:43]}  Rg8 {[%clk 0:02:21]} 19. Kg2 {[%clk 0:02:17]}  Nf6 {[%clk 0:02:20]} 20. Bf5 {[%clk 0:02:16]}  Ne6 {[%clk 0:02:19]} 21. Qf3 {[%clk 0:02:06]}  Nd7 {[%clk 0:01:50]} 22. Rd1 {[%clk 0:02:03]}  O-O-O {[%clk 0:01:44]} 23. Nxa5 {[%clk 0:01:50]}  Rh8 {[%clk 0:01:24]} 24. Nc4 {[%clk 0:01:46]}  Rdg8 {[%clk 0:01:23]} 25. b4 {[%clk 0:01:40]}  Qh4 {[%clk 0:01:22]} 26. Kf1 {[%clk 0:01:36]}  Qh1+ {[%clk 0:01:20]} 27. Qxh1 {[%clk 0:01:32]}  Rxh1+ {[%clk 0:01:21]} 28. Ke2 {[%clk 0:01:32]}  Rxd1 {[%clk 0:01:21]} 29. Kxd1 {[%clk 0:01:33]}  Bxf2 {[%clk 0:01:22]} 30. Nd6+ {[%clk 0:01:26]}  Kc7 {[%clk 0:01:21]} 31. Nxf7 {[%clk 0:01:27]}  Nef8 {[%clk 0:01:15]} 32. g4 {[%clk 0:01:24]}  Rg7 {[%clk 0:01:07]} 33. Nh6 {[%clk 0:01:08]}  Nf6 {[%clk 0:01:00]} 34. Ke2 {[%clk 0:01:04]}  Bg3 {[%clk 0:00:58]} 35. Kf3 {[%clk 0:01:01]}  Be1 {[%clk 0:00:55]} 36. g5 {[%clk 0:00:44]}  Nh5 {[%clk 0:00:52]} 37. Kg4 {[%clk 0:00:42]}  Nf6+ {[%clk 0:00:42]} 38. Kf3 {[%clk 0:00:42]}  Nh5 {[%clk 0:00:42]} 39. Ra3 {[%clk 0:00:39]}  Ng6 {[%clk 0:00:23]} 40. Bxg6 {[%clk 0:00:34]}  Rxg6 {[%clk 0:00:23]} 41. Nf5 {[%clk 0:00:35]}  Rg8 {[%clk 0:00:15]} 42. Be3 {[%clk 0:00:33]}  Rd8 {[%clk 0:00:13]} 43. Ke2 {[%clk 0:00:32]}  Bg3 {[%clk 0:00:09]} 44. Ra1 {[%clk 0:00:21]}  Bf4 {[%clk 0:00:08]} 45. Rg1 {[%clk 0:00:19]}  Bxe3 {[%clk 0:00:08]} 46. Kxe3 {[%clk 0:00:19]}  Nf4 {[%clk 0:00:09]} 47. Nd4 {[%clk 0:00:12]}  Kc8 {[%clk 0:00:05]} 48. g6 {[%clk 0:00:10]}  Rg8 {[%clk 0:00:05]} 49. g7 {[%clk 0:00:08]}  Kd7 {[%clk 0:00:05]} 50. Nf5 {[%clk 0:00:08]}  Ne6 {[%clk 0:00:05]} 51. Rd1+ {[%clk 0:00:07]}  Ke8 {[%clk 0:00:05]} 52. Rg1 {[%clk 0:00:07]}  Kd7 {[%clk 0:00:04]} 53. a5 {[%clk 0:00:07]}  c5 {[%clk 0:00:04]} 54. b5 {[%clk 0:00:07]}  c4 {[%clk 0:00:04]} 55. a6 {[%clk 0:00:07]}  bxa6 {[%clk 0:00:03]} 56. bxa6 {[%clk 0:00:08]}  Nc5 {[%clk 0:00:00]} 57. a7 {[%clk 0:00:08]} 1-0

[Event "January 2 Late 2024"]
[Site "https://www.chess.com"]
[Date "2024.01.02"]
[Round "9"]
[White "Maksimovic, Bojan"]
[Black "Martin Fuentes, Alberto"]
[Result "1-0"]
[Board "30"]
[TimeControl "180+1"]
[WhiteFideId "14408120"]
[BlackFideId "2292289"]
[WhiteElo "2855"]
[BlackElo "2659"]
[WhiteTeam "BIH"]
[BlackTeam "ESP"]
[WhiteClock "0:00:23"]
[BlackClock "0:00:31"]

1. e4 {[%clk 0:03:00]}  e6 {[%clk 0:02:59]} 2. d4 {[%clk 0:03:00]}  d5 {[%clk 0:03:00]} 3. Nc3 {[%clk 0:03:01]}  Bb4 {[%clk 0:02:58]} 4. e5 {[%clk 0:03:01]}  Ne7 {[%clk 0:02:59]} 5. a3 {[%clk 0:03:00]}  Bxc3+ {[%clk 0:02:55]} 6. bxc3 {[%clk 0:03:01]}  b6 {[%clk 0:02:55]} 7. Qg4 {[%clk 0:02:57]}  Ng6 {[%clk 0:02:55]} 8. Bd3 {[%clk 0:02:19]}  Ba6 {[%clk 0:02:52]} 9. Bxg6 {[%clk 0:02:19]}  hxg6 {[%clk 0:02:51]} 10. h4 {[%clk 0:02:20]}  Nc6 {[%clk 0:02:48]} 11. h5 {[%clk 0:02:08]}  Ne7 {[%clk 0:02:45]} 12. Rh3 {[%clk 0:01:48]}  gxh5 {[%clk 0:02:36]} 13. Rxh5 {[%clk 0:01:46]}  Rxh5 {[%clk 0:02:34]} 14. Qxh5 {[%clk 0:01:47]}  Ng6 {[%clk 0:01:39]} 15. Nf3 {[%clk 0:01:40]}  Kd7 {[%clk 0:01:38]} 16. Bg5 {[%clk 0:01:33]}  Qh8 {[%clk 0:01:38]} 17. g4 {[%clk 0:01:33]}  Qxh5 {[%clk 0:01:24]} 18. gxh5 {[%clk 0:01:34]}  Ne7 {[%clk 0:01:25]} 19. Kd2 {[%clk 0:01:25]}  Nf5 {[%clk 0:01:25]} 20. Rh1 {[%clk 0:01:25]}  c5 {[%clk 0:01:19]} 21. Be3 {[%clk 0:01:11]}  cxd4 {[%clk 0:01:05]} 22. Nxd4 {[%clk 0:01:08]}  Nxd4 {[%clk 0:01:05]} 23. cxd4 {[%clk 0:01:08]}  Rh8 {[%clk 0:01:05]} 24. Rg1 {[%clk 0:01:08]}  Rh7 {[%clk 0:01:00]} 25. Rg5 {[%clk 0:00:43]}  Bf1 {[%clk 0:00:58]} 26. Rg1 {[%clk 0:00:35]}  Bh3 {[%clk 0:00:58]} 27. a4 {[%clk 0:00:18]}  Bf5 {[%clk 0:00:56]} 28. Kc3 {[%clk 0:00:17]}  Kc6 {[%clk 0:00:55]} 29. Kb3 {[%clk 0:00:14]}  Be4 {[%clk 0:00:55]} 30. Rg3 {[%clk 0:00:15]}  Bf5 {[%clk 0:00:53]} 31. c3 {[%clk 0:00:12]}  Bd3 {[%clk 0:00:52]} 32. Rh3 {[%clk 0:00:10]}  Be2 {[%clk 0:00:46]} 33. h6 {[%clk 0:00:11]}  gxh6 {[%clk 0:00:46]} 34. Bxh6 {[%clk 0:00:12]}  Bd1+ {[%clk 0:00:42]} 35. Ka3 {[%clk 0:00:12]}  Kb7 {[%clk 0:00:43]} 36. Rh4 {[%clk 0:00:11]}  Ka6 {[%clk 0:00:42]} 37. Rh1 {[%clk 0:00:09]}  Bc2 {[%clk 0:00:41]} 38. Rh2 {[%clk 0:00:06]}  Ka5 {[%clk 0:00:41]} 39. Bf4 {[%clk 0:00:06]}  Rxh2 {[%clk 0:00:40]} 40. Bxh2 {[%clk 0:00:06]}  Bxa4 {[%clk 0:00:40]} 41. Bf4 {[%clk 0:00:07]}  Kb5 {[%clk 0:00:39]} 42. Kb2 {[%clk 0:00:05]}  Bd1 {[%clk 0:00:39]} 43. Bg5 {[%clk 0:00:06]}  Kc4 {[%clk 0:00:37]} 44. Bd8 {[%clk 0:00:07]}  b5 {[%clk 0:00:36]} 45. Ba5 {[%clk 0:00:06]}  a6 {[%clk 0:00:36]} 46. Bb4 {[%clk 0:00:07]}  Kd3 {[%clk 0:00:35]} 47. Ka3 {[%clk 0:00:06]}  Ke2 {[%clk 0:00:35]} 48. Ba5 {[%clk 0:00:06]}  Kxf2 {[%clk 0:00:35]} 49. Kb4 {[%clk 0:00:07]}  Ke3 {[%clk 0:00:33]} 50. Bb6 {[%clk 0:00:07]}  Kd3 {[%clk 0:00:33]} 51. Bd8 {[%clk 0:00:08]}  Ke4 {[%clk 0:00:32]} 52. Bh4 {[%clk 0:00:07]}  Kd3 {[%clk 0:00:32]} 53. Be1 {[%clk 0:00:07]}  Ke2 {[%clk 0:00:30]} 54. Bh4 {[%clk 0:00:08]}  Kd2 {[%clk 0:00:31]} 55. Bg5+ {[%clk 0:00:08]}  Kd3 {[%clk 0:00:31]} 56. Bd8 {[%clk 0:00:08]}  Be2 {[%clk 0:00:30]} 57. Bc7 {[%clk 0:00:08]}  Ke4 {[%clk 0:00:28]} 58. Bd8 {[%clk 0:00:07]}  Kf5 {[%clk 0:00:29]} 59. Bh4 {[%clk 0:00:07]}  Kg6 {[%clk 0:00:26]} 60. Bd8 {[%clk 0:00:07]}  Kf5 {[%clk 0:00:23]} 61. Ka5 {[%clk 0:00:06]}  Ke4 {[%clk 0:00:21]} 62. Kb4 {[%clk 0:00:07]}  Kd3 {[%clk 0:00:20]} 63. Bc7 {[%clk 0:00:08]}  Kc2 {[%clk 0:00:20]} 64. Bd8 {[%clk 0:00:08]}  Kb2 {[%clk 0:00:21]} 65. Bc7 {[%clk 0:00:08]}  Kc1 {[%clk 0:00:21]} 66. Bd8 {[%clk 0:00:08]}  Kd2 {[%clk 0:00:22]} 67. Bc7 {[%clk 0:00:09]}  Ke3 {[%clk 0:00:22]} 68. Bd8 {[%clk 0:00:09]}  Kf4 {[%clk 0:00:23]} 69. Bc7 {[%clk 0:00:10]}  Kg5 {[%clk 0:00:22]} 70. Bd8+ {[%clk 0:00:10]}  Kg6 {[%clk 0:00:23]} 71. Bh4 {[%clk 0:00:10]}  Kg7 {[%clk 0:00:23]} 72. Bf6+ {[%clk 0:00:10]}  Kf8 {[%clk 0:00:23]} 73. Ka5 {[%clk 0:00:11]}  Ke8 {[%clk 0:00:23]} 74. Kb4 {[%clk 0:00:11]}  Kd7 {[%clk 0:00:24]} 75. Ka5 {[%clk 0:00:11]}  Kc6 {[%clk 0:00:24]} 76. Bg5 {[%clk 0:00:11]}  Kb7 {[%clk 0:00:24]} 77. Bf6 {[%clk 0:00:12]}  Bc4 {[%clk 0:00:24]} 78. Be7 {[%clk 0:00:12]}  Kc7 {[%clk 0:00:24]} 79. Bb4 {[%clk 0:00:12]}  Kd7 {[%clk 0:00:25]} 80. Kxa6 {[%clk 0:00:13]}  Ke8 {[%clk 0:00:22]} 81. Kb6 {[%clk 0:00:13]}  Kd7 {[%clk 0:00:22]} 82. Kb7 {[%clk 0:00:14]}  Bd3 {[%clk 0:00:22]} 83. Kb6 {[%clk 0:00:14]}  Bc4 {[%clk 0:00:23]} 84. Ka5 {[%clk 0:00:14]}  Bd3 {[%clk 0:00:24]} 85. Bc5 {[%clk 0:00:15]}  Bc4 {[%clk 0:00:25]} 86. Kb4 {[%clk 0:00:15]}  Bd3 {[%clk 0:00:25]} 87. Bf8 {[%clk 0:00:16]}  Bc4 {[%clk 0:00:25]} 88. Bg7 {[%clk 0:00:16]}  Bd3 {[%clk 0:00:25]} 89. Bf6 {[%clk 0:00:17]}  Bc4 {[%clk 0:00:25]} 90. Kc5 {[%clk 0:00:18]}  Bd3 {[%clk 0:00:25]} 91. Bg5 {[%clk 0:00:18]}  Bc4 {[%clk 0:00:26]} 92. Bc1 {[%clk 0:00:19]}  Bd3 {[%clk 0:00:26]} 93. Kb4 {[%clk 0:00:19]}  Bc4 {[%clk 0:00:26]} 94. Ka3 {[%clk 0:00:20]}  Bd3 {[%clk 0:00:26]} 95. Kb2 {[%clk 0:00:20]}  Bc4 {[%clk 0:00:26]} 96. Kc2 {[%clk 0:00:21]}  Ke8 {[%clk 0:00:26]} 97. Ba3 {[%clk 0:00:21]}  Kd7 {[%clk 0:00:26]} 98. Bb4 {[%clk 0:00:21]}  Ke8 {[%clk 0:00:27]} 99. Kd2 {[%clk 0:00:22]}  Bb3 {[%clk 0:00:27]} 100. Ke3 {[%clk 0:00:23]}  Bc4 {[%clk 0:00:28]} 101. Kf3 {[%clk 0:00:23]}  Bb3 {[%clk 0:00:28]} 102. Kf4 {[%clk 0:00:24]}  Bc4 {[%clk 0:00:28]} 103. Kg5 {[%clk 0:00:25]}  Bb3 {[%clk 0:00:29]} 104. Kf6 {[%clk 0:00:25]}  Bc4 {[%clk 0:00:29]} 105. Kg5 {[%clk 0:00:24]}  Bb3 {[%clk 0:00:29]} 106. Kh5 {[%clk 0:00:24]}  Bc4 {[%clk 0:00:30]} 107. Kh4 {[%clk 0:00:25]}  Bb3 {[%clk 0:00:30]} 108. Kg3 {[%clk 0:00:26]}  Bc4 {[%clk 0:00:30]} 109. Kf2 {[%clk 0:00:27]}  f5 {[%clk 0:00:30]} 110. Ke1 {[%clk 0:00:28]}  Kf7 {[%clk 0:00:30]} 111. Kf2 {[%clk 0:00:27]}  Kg6 {[%clk 0:00:30]} 112. Kg3 {[%clk 0:00:28]}  Kg5 {[%clk 0:00:30]} 113. Be7+ {[%clk 0:00:28]}  Kh5 {[%clk 0:00:31]} 114. Kf4 {[%clk 0:00:28]}  Kg6 {[%clk 0:00:31]} 115. Bb4 {[%clk 0:00:29]}  Kf7 {[%clk 0:00:32]} 116. Kg5 {[%clk 0:00:29]}  Ke8 {[%clk 0:00:33]} 117. Ba3 {[%clk 0:00:28]}  Kd7 {[%clk 0:00:34]} 118. Bb4 {[%clk 0:00:29]}  Kc6 {[%clk 0:00:35]} 119. Ba3 {[%clk 0:00:29]}  Kb6 {[%clk 0:00:36]} 120. Bc1 {[%clk 0:00:26]}  Kc6 {[%clk 0:00:34]} 121. Ba3 {[%clk 0:00:25]}  Kd7 {[%clk 0:00:35]} 122. Bb4 {[%clk 0:00:25]}  Kc7 {[%clk 0:00:36]} 123. Bf8 {[%clk 0:00:24]}  Kb7 {[%clk 0:00:37]} 124. Bh6 {[%clk 0:00:25]}  Ka8 {[%clk 0:00:37]} 125. Kf6 {[%clk 0:00:25]}  Ka7 {[%clk 0:00:37]} 126. Kxe6 {[%clk 0:00:25]}  Kb7 {[%clk 0:00:35]} 127. Kd7 {[%clk 0:00:23]}  b4 {[%clk 0:00:31]} 128. cxb4 {[%clk 0:00:23]} 1-0

[Event "January 2 Late 2024"]
[Site "https://www.chess.com"]
[Date "2024.01.02"]
[Round "9"]
[White "Leenhouts, Koen"]
[Black "Timmermans, Mark"]
[Result "0-1"]
[Board "35"]
[TimeControl "180+1"]
[WhiteFideId "1008439"]
[BlackFideId "1026399"]
[WhiteElo "2551"]
[BlackElo "2774"]
[WhiteTeam "NED"]
[BlackTeam "NED"]
[WhiteClock "0:00:06"]
[BlackClock "0:00:41"]

1. d4 {[%clk 0:03:00]}  Nf6 {[%clk 0:02:58]} 2. c4 {[%clk 0:03:01]}  e6 {[%clk 0:02:49]} 3. g3 {[%clk 0:02:58]}  d5 {[%clk 0:02:47]} 4. Nf3 {[%clk 0:02:58]}  Be7 {[%clk 0:02:46]} 5. Bg2 {[%clk 0:02:58]}  O-O {[%clk 0:02:46]} 6. O-O {[%clk 0:02:59]}  dxc4 {[%clk 0:02:43]} 7. Qc2 {[%clk 0:02:59]}  b5 {[%clk 0:02:42]} 8. a4 {[%clk 0:02:59]}  b4 {[%clk 0:02:39]} 9. Nbd2 {[%clk 0:02:56]}  Bb7 {[%clk 0:02:36]} 10. Nxc4 {[%clk 0:02:54]}  c5 {[%clk 0:02:37]} 11. Rd1 {[%clk 0:02:52]}  Nbd7 {[%clk 0:02:36]} 12. Bf4 {[%clk 0:02:46]}  Be4 {[%clk 0:02:31]} 13. Qd2 {[%clk 0:02:42]}  Bd5 {[%clk 0:02:22]} 14. Rac1 {[%clk 0:02:37]}  Rc8 {[%clk 0:02:20]} 15. Nfe5 {[%clk 0:02:12]}  Bxg2 {[%clk 0:02:17]} 16. Kxg2 {[%clk 0:02:11]}  Nd5 {[%clk 0:02:16]} 17. Nxd7 {[%clk 0:02:05]}  Qxd7 {[%clk 0:02:17]} 18. dxc5 {[%clk 0:02:01]}  Rxc5 {[%clk 0:02:08]} 19. b3 {[%clk 0:01:32]}  Qb7 {[%clk 0:02:06]} 20. Kg1 {[%clk 0:01:26]}  Nc3 {[%clk 0:02:06]} 21. Re1 {[%clk 0:01:23]}  Rd8 {[%clk 0:02:04]} 22. Qe3 {[%clk 0:01:15]}  Rcd5 {[%clk 0:01:52]} 23. h4 {[%clk 0:01:12]}  Bc5 {[%clk 0:01:25]} 24. Qf3 {[%clk 0:01:11]}  Qa8 {[%clk 0:01:12]} 25. Be5 {[%clk 0:01:03]}  Bd4 {[%clk 0:01:11]} 26. Bxd4 {[%clk 0:00:55]}  Rxd4 {[%clk 0:01:12]} 27. Qxa8 {[%clk 0:00:42]}  Rxa8 {[%clk 0:01:13]} 28. Ne5 {[%clk 0:00:39]}  a5 {[%clk 0:01:07]} 29. Nc4 {[%clk 0:00:36]}  h5 {[%clk 0:01:04]} 30. e3 {[%clk 0:00:35]}  Rd3 {[%clk 0:01:04]} 31. Rc2 {[%clk 0:00:31]}  f6 {[%clk 0:01:00]} 32. Rec1 {[%clk 0:00:30]}  Kf7 {[%clk 0:00:56]} 33. Kg2 {[%clk 0:00:29]}  e5 {[%clk 0:00:53]} 34. Nb6 {[%clk 0:00:28]}  Ra6 {[%clk 0:00:52]} 35. Nc4 {[%clk 0:00:28]}  Ke6 {[%clk 0:00:52]} 36. Nb2 {[%clk 0:00:27]}  Rd5 {[%clk 0:00:49]} 37. Nc4 {[%clk 0:00:26]}  e4 {[%clk 0:00:46]} 38. Rxc3 {[%clk 0:00:22]}  bxc3 {[%clk 0:00:46]} 39. Rxc3 {[%clk 0:00:23]}  Rd3 {[%clk 0:00:46]} 40. Rxd3 {[%clk 0:00:20]}  exd3 {[%clk 0:00:47]} 41. Kf1 {[%clk 0:00:20]}  Kd5 {[%clk 0:00:42]} 42. Ke1 {[%clk 0:00:19]}  Kc5 {[%clk 0:00:42]} 43. Kd2 {[%clk 0:00:15]}  Kb4 {[%clk 0:00:43]} 44. Kxd3 {[%clk 0:00:15]}  Kxb3 {[%clk 0:00:43]} 45. Kd4 {[%clk 0:00:13]}  Kxa4 {[%clk 0:00:43]} 46. Kc5 {[%clk 0:00:14]}  Kb3 {[%clk 0:00:43]} 47. Kb5 {[%clk 0:00:13]}  a4 {[%clk 0:00:42]} 48. Nd2+ {[%clk 0:00:13]}  Kc2 {[%clk 0:00:41]} 49. Nc4 {[%clk 0:00:06]}  a3 {[%clk 0:00:41]} 0-1

[Event "January 2 Late 2024"]
[Site "https://www.chess.com"]
[Date "2024.01.02"]
[Round "9"]
[White "Gurevich, Dmitry"]
[Black "Flores, Diego"]
[Result "1/2-1/2"]
[Board "36"]
[TimeControl "180+1"]
[WhiteFideId "2000407"]
[BlackFideId "108049"]
[WhiteElo "2456"]
[BlackElo "2751"]
[WhiteTeam "USA"]
[BlackTeam "ARG"]
[WhiteClock "0:00:11"]
[BlackClock "0:00:15"]

1. d4 {[%clk 0:03:00]}  Nf6 {[%clk 0:02:57]} 2. c4 {[%clk 0:03:00]}  e6 {[%clk 0:02:55]} 3. Nc3 {[%clk 0:03:00]}  d5 {[%clk 0:02:53]} 4. Nf3 {[%clk 0:02:59]}  dxc4 {[%clk 0:02:52]} 5. Bg5 {[%clk 0:02:49]}  a6 {[%clk 0:02:41]} 6. e4 {[%clk 0:02:49]}  b5 {[%clk 0:02:40]} 7. e5 {[%clk 0:02:48]}  h6 {[%clk 0:02:40]} 8. Bh4 {[%clk 0:02:42]}  g5 {[%clk 0:02:40]} 9. Nxg5 {[%clk 0:02:41]}  hxg5 {[%clk 0:02:39]} 10. Bxg5 {[%clk 0:02:41]}  Nbd7 {[%clk 0:02:24]} 11. Qf3 {[%clk 0:02:21]}  Rb8 {[%clk 0:02:21]} 12. exf6 {[%clk 0:02:11]}  Bh6 {[%clk 0:02:05]} 13. Bxh6 {[%clk 0:01:54]}  Rxh6 {[%clk 0:02:03]} 14. d5 {[%clk 0:01:45]}  Qxf6 {[%clk 0:01:41]} 15. Qxf6 {[%clk 0:01:40]}  Nxf6 {[%clk 0:01:38]} 16. dxe6 {[%clk 0:01:32]}  Bxe6 {[%clk 0:01:39]} 17. Be2 {[%clk 0:01:29]}  b4 {[%clk 0:00:52]} 18. Na4 {[%clk 0:01:15]}  Ne4 {[%clk 0:00:52]} 19. O-O {[%clk 0:01:06]}  Bd7 {[%clk 0:00:36]} 20. Bxc4 {[%clk 0:00:55]}  Bxa4 {[%clk 0:00:27]} 21. Rfe1 {[%clk 0:00:54]}  f5 {[%clk 0:00:27]} 22. f3 {[%clk 0:00:53]}  Bc6 {[%clk 0:00:24]} 23. fxe4 {[%clk 0:00:49]}  Bxe4 {[%clk 0:00:24]} 24. Bd5 {[%clk 0:00:45]}  Rh4 {[%clk 0:00:09]} 25. g3 {[%clk 0:00:44]}  Rg4 {[%clk 0:00:09]} 26. Re3 {[%clk 0:00:37]}  Rd8 {[%clk 0:00:09]} 27. Bxe4 {[%clk 0:00:31]}  Rxe4 {[%clk 0:00:09]} 28. Rxe4+ {[%clk 0:00:24]}  fxe4 {[%clk 0:00:10]} 29. Re1 {[%clk 0:00:23]}  Rd4 {[%clk 0:00:11]} 30. Kf2 {[%clk 0:00:20]}  Kf7 {[%clk 0:00:10]} 31. Ke3 {[%clk 0:00:19]}  c5 {[%clk 0:00:11]} 32. Rc1 {[%clk 0:00:18]}  Rd3+ {[%clk 0:00:11]} 33. Kxe4 {[%clk 0:00:17]}  Rd2 {[%clk 0:00:11]} 34. Rxc5 {[%clk 0:00:17]}  Rxb2 {[%clk 0:00:12]} 35. Ra5 {[%clk 0:00:16]}  Rxh2 {[%clk 0:00:09]} 36. Rxa6 {[%clk 0:00:16]}  Rg2 {[%clk 0:00:08]} 37. Kf3 {[%clk 0:00:11]}  Rb2 {[%clk 0:00:08]} 38. Rb6 {[%clk 0:00:09]}  Rxa2 {[%clk 0:00:08]} 39. Rxb4 {[%clk 0:00:09]}  Ra5 {[%clk 0:00:08]} 40. Kf4 {[%clk 0:00:09]}  Kg6 {[%clk 0:00:08]} 41. g4 {[%clk 0:00:09]}  Rc5 {[%clk 0:00:08]} 42. Rb6+ {[%clk 0:00:08]}  Kg7 {[%clk 0:00:09]} 43. Re6 {[%clk 0:00:08]}  Ra5 {[%clk 0:00:09]} 44. Re5 {[%clk 0:00:08]}  Rxe5 {[%clk 0:00:09]} 45. Kxe5 {[%clk 0:00:08]}  Kg6 {[%clk 0:00:10]} 46. Kf4 {[%clk 0:00:08]}  Kf6 {[%clk 0:00:10]} 47. g5+ {[%clk 0:00:08]}  Kg6 {[%clk 0:00:11]} 48. Kg4 {[%clk 0:00:09]}  Kg7 {[%clk 0:00:12]} 49. Kf5 {[%clk 0:00:09]}  Kf7 {[%clk 0:00:12]} 50. g6+ {[%clk 0:00:10]}  Kg7 {[%clk 0:00:13]} 51. Kg5 {[%clk 0:00:10]}  Kg8 {[%clk 0:00:13]} 52. Kf6 {[%clk 0:00:10]}  Kf8 {[%clk 0:00:14]} 53. g7+ {[%clk 0:00:11]}  Kg8 {[%clk 0:00:15]} 54. Kg6 {[%clk 0:00:11]} 1/2-1/2